fUSD/lending_fUSD_20260606
["ID","MTS","AMOUNT","RATE_DAILY","PERIOD"]
[424243767,1780696232000,-487.0,0.00011884,2]
[424243770,1780696232000,-299.99,0.00011899,2]
[424243769,1780696232000,-487.0,0.00011896,2]
[424243775,1780696232000,-9999.99,0.00011899,2]
[424243776,1780696232000,-1289.74777098,0.000119,2]
[424243718,1780696232000,-487.0,0.00011745,2]
[424243774,1780696232000,-1103.97,0.00011899,2]
[424243752,1780696232000,-487.0,0.00011855,2]
[424243765,1780696232000,-487.0,0.00011878,2]
[424243741,1780696232000,-487.0,0.00011817,2]
[424243721,1780696232000,-487.0,0.00011747,2]
[424243750,1780696232000,-487.0,0.00011851,2]
[424243725,1780696232000,-487.0,0.00011756,2]
[424243726,1780696232000,-487.0,0.00011757,2]
[424243730,1780696232000,-487.0,0.00011769,2]
[424243732,1780696232000,-487.0,0.00011792,2]
[424243734,1780696232000,-487.0,0.00011799,2]
[424243735,1780696232000,-8750.70915068,0.000118,2]
[424243727,1780696232000,-570.0,0.00011757,2]
[424243728,1780696232000,-487.0,0.00011759,2]
[424243777,1780696232000,-330.83967949,0.000119,2]
[424243731,1780696232000,-487.0,0.00011776,2]
[424243733,1780696232000,-487.0,0.00011795,2]
[424243747,1780696232000,-487.0,0.00011838,2]
[424243749,1780696232000,-487.0,0.00011841,2]
[424243729,1780696232000,-487.0,0.00011769,2]
[424243748,1780696232000,-487.0,0.0001184,2]
[424243742,1780696232000,-1417.62,0.00011819,2]
[424243740,1780696232000,-487.0,0.00011815,2]
[424243745,1780696232000,-487.0,0.00011827,2]
[424243739,1780696232000,-487.0,0.00011811,2]
[424243743,1780696232000,-487.0,0.00011822,2]
[424243737,1780696232000,-487.0,0.00011803,2]
[424243744,1780696232000,-487.0,0.00011822,2]
[424243746,1780696232000,-487.0,0.00011837,2]
[424243738,1780696232000,-487.0,0.00011809,2]
[424243803,1780696233000,-14065.4547355,0.00012477,2]
[424243799,1780696233000,-219.71979446,0.00012329,2]
[424243809,1780696233000,-8750.70915065,0.00012489,2]
[424243789,1780696233000,-487.0,0.00012047,2]
[424243798,1780696233000,-994.14,0.00012329,2]
[424243800,1780696233000,-208.59660391,0.00012329,2]
[424243805,1780696233000,-479.0,0.00012477,2]
[424243804,1780696233000,-1162.438913,0.00012477,2]
[424243801,1780696233000,-1417.62,0.00012396,2]
[424243806,1780696233000,-3745.9505109,0.00012477,2]
[424243808,1780696233000,-4855.4011344,0.00012477,2]
[424243807,1780696233000,-3029.3593031,0.00012477,2]
[424243797,1780696233000,-2000.0,0.00012304,2]
[424243811,1780696233000,-1417.62,0.00012684,2]
[424243802,1780696233000,-1952.6548391,0.00012477,2]
[424243790,1780696233000,-487.0,0.00012065,2]
[424243782,1780696233000,-487.0,0.00011953,2]
[424243791,1780696233000,-487.0,0.0001208,2]
[424243810,1780696233000,-433.0,0.00012639,2]
[424243780,1780696233000,-487.0,0.00011922,2]
[424243778,1780696233000,-487.0,0.00011909,2]
[424243781,1780696233000,-178.20632042,0.00011941,2]
[424243779,1780696233000,-487.0,0.00011916,2]
[424243784,1780696233000,-487.0,0.00011986,2]
[424243783,1780696233000,-487.0,0.00011956,2]
[424243786,1780696233000,-487.0,0.0001201,2]
[424243795,1780696233000,-1417.62,0.00012108,2]
[424243788,1780696233000,-487.0,0.00012046,2]
[424243796,1780696233000,-8750.70915065,0.00012144,2]
[424243787,1780696233000,-487.0,0.00012038,2]
[424243792,1780696233000,-487.0,0.00012093,2]
[424243785,1780696233000,-487.0,0.00012004,2]
[424243794,1780696233000,-487.0,0.00012107,2]
[424243793,1780696233000,-487.0,0.00012101,2]
[424243819,1780696233000,-8750.70915065,0.00012833,2]
[424243835,1780696233000,-151.0,0.0001343,2]
[424243813,1780696233000,-1000.0,0.00012713,2]
[424243833,1780696233000,-162.08068374,0.00013424,2]
[424243837,1780696233000,-496.0,0.00013482,2]
[424243821,1780696233000,-416.16,0.00012985,2]
[424243843,1780696233000,-150.0,0.00013488,2]
[424243839,1780696233000,-150.0,0.00013488,2]
[424243838,1780696233000,-150.0,0.00013488,2]
[424243841,1780696233000,-237.29286515,0.00013488,2]
[424243840,1780696233000,-150.0,0.00013488,2]
[424243836,1780696233000,-496.0,0.00013433,2]
[424243844,1780696233000,-150.0,0.00013488,2]
[424243846,1780696233000,-5060.49212474,0.00013494,2]
[424243848,1780696233000,-496.2484482,0.00013494,2]
[424243845,1780696233000,-150.0,0.00013488,2]
[424243847,1780696233000,-479.0,0.00013494,2]
[424243834,1780696233000,-150.0,0.00013424,2]
[424243832,1780696233000,-174.16136749,0.00013424,2]
[424243842,1780696233000,-242.9366496,0.00013488,2]
[424243830,1780696233000,-1478.28291499,0.00013324,2]
[424243812,1780696233000,-156.89400998,0.000127,2]
[424243818,1780696233000,-150.0,0.0001274,2]
[424243829,1780696233000,-403.960304,0.00013322,2]
[424243814,1780696233000,-151.0,0.00012738,2]
[424243815,1780696233000,-300.0,0.0001274,2]
[424243820,1780696233000,-219.71979446,0.00012864,2]
[424243817,1780696233000,-300.0,0.0001274,2]
[424243816,1780696233000,-670.46851618,0.0001274,2]
[424243824,1780696233000,-151.0,0.00013113,2]
[424243831,1780696233000,-23927.55,0.00013397,2]
[424243825,1780696233000,-300.0,0.00013115,2]
[424243822,1780696233000,-215.77576141,0.00013047,2]
[424243826,1780696233000,-166.68,0.00013169,2]
[424243828,1780696233000,-1365.35695059,0.00013178,2]
[424243827,1780696233000,-7385.35220006,0.00013178,2]
[424243823,1780696233000,-160.0,0.00013047,2]
[424243850,1780696238000,-7486.30571905,0.00013494,2]
[424243851,1780696238000,-301.06385252,0.00013494,2]
[424243852,1780696238000,-2547.63897966,0.00013494,2]
[424243878,1780696240000,-629.67317731,0.00013494,2]
[424243879,1780696240000,-406.5945204,0.00013494,2]
[424243877,1780696240000,-396.71618048,0.00013494,2]
[424243896,1780696243000,-448.0,0.000134,2]
[424243892,1780696243000,-448.0,0.00013388,2]
[424243893,1780696243000,-28.24657979,0.00013391,2]
[424243897,1780696243000,-448.0,0.000134,2]
[424243894,1780696243000,-371.28,0.00013391,2]
[424243895,1780696243000,-48.47342021,0.00013391,2]
[424243901,1780696243000,-4372.67755489,0.00013494,2]
[424243900,1780696243000,-448.0,0.00013484,2]
[424243898,1780696243000,-448.0,0.00013418,2]
[424243902,1780696243000,-6168.05,0.00013494,2]
[424243899,1780696243000,-448.0,0.00013428,2]
[424243913,1780696246000,-199.58060365,0.00013494,2]
[424243912,1780696246000,-279.1725733,0.00012366,2]
[424243916,1780696252000,152.0,0.00029137,120]
[424243917,1780696273000,152.0,0.00029137,120]
[424243920,1780696311000,152.0,0.00029137,120]
[424243921,1780696372000,682.67,0.00030137,120]
[424243923,1780696458000,2694.41634691,0.00030137,120]
[424243925,1780696786000,662.76,0.00030082,120]
[424243926,1780696823000,4003.89964975,0.0002,120]
[424243928,1780697089000,1004.46809712,0.0003,120]
[424243929,1780697104000,161.0,0.00024878,120]
[424243930,1780697106000,152.0,0.00029338,120]
[424243931,1780697125000,152.0,0.00029338,120]
[424243937,1780697295000,17837.73,0.00030137,120]
[424243938,1780697341000,2000.0,0.00030136,120]
[424243939,1780697383000,1081.0,0.0003,120]
[424243981,1780697432000,-500.0,0.00010794,2]
[424243968,1780697432000,-500.0,0.00010794,2]
[424243975,1780697432000,-500.0,0.00010794,2]
[424243971,1780697432000,-500.0,0.00010794,2]
[424243970,1780697432000,-451.82009113,0.00010794,2]
[424243963,1780697432000,-500.0,0.00010794,2]
[424243972,1780697432000,-500.0,0.00010794,2]
[424243969,1780697432000,-500.0,0.00010794,2]
[424243965,1780697432000,-500.0,0.00010794,2]
[424243973,1780697432000,-500.0,0.00010794,2]
[424243987,1780697432000,-500.0,0.00010794,2]
[424243988,1780697432000,-500.0,0.00010794,2]
[424243977,1780697432000,-500.0,0.00010794,2]
[424243990,1780697432000,-500.0,0.00010794,2]
[424243976,1780697432000,-500.0,0.00010794,2]
[424243978,1780697432000,-500.0,0.00010794,2]
[424243979,1780697432000,-500.0,0.00010794,2]
[424243989,1780697432000,-500.0,0.00010794,2]
[424243966,1780697432000,-500.0,0.00010794,2]
[424243956,1780697432000,-685.81,0.0001072,2]
[424243962,1780697432000,-500.0,0.00010794,2]
[424243946,1780697432000,-326.36334526,0.00010408,2]
[424243945,1780697432000,-334.32462767,0.00010408,2]
[424243944,1780697432000,-500.0,0.00010407,2]
[424243947,1780697432000,-150.0,0.00010511,2]
[424243948,1780697432000,-220.0,0.00010515,2]
[424243950,1780697432000,-395.0,0.00010569,2]
[424243959,1780697432000,-395.0,0.0001075,2]
[424243949,1780697432000,-395.0,0.00010524,2]
[424243964,1780697432000,-500.0,0.00010794,2]
[424243954,1780697432000,-395.0,0.00010651,2]
[424243961,1780697432000,-150.0,0.00010793,2]
[424243960,1780697432000,-395.0,0.00010785,2]
[424243951,1780697432000,-150.0,0.00010615,2]
[424243953,1780697432000,-395.0,0.0001065,2]
[424243958,1780697432000,-395.0,0.0001075,2]
[424243955,1780697432000,-1595.54,0.00010651,2]
[424243952,1780697432000,-395.0,0.00010636,2]
[424243957,1780697432000,-395.0,0.00010726,2]
[424243980,1780697432000,-500.0,0.00010794,2]
[424243983,1780697432000,-500.0,0.00010794,2]
[424243967,1780697432000,-500.0,0.00010794,2]
[424243985,1780697432000,-500.0,0.00010794,2]
[424244008,1780697432000,-250.0,0.00011448,2]
[424244014,1780697432000,-298.99719239,0.00012014,2]
[424244011,1780697432000,-255.0,0.00011829,2]
[424244010,1780697432000,-2000.0,0.00011742,2]
[424244017,1780697432000,-479.93263,0.00012014,2]
[424244016,1780697432000,-500.0,0.00012014,2]
[424244018,1780697432000,-500.0,0.00012014,2]
[424244019,1780697432000,-266.77108104,0.00012014,2]
[424244007,1780697432000,-197.49,0.00011401,2]
[424244020,1780697432000,-3389.77,0.00012015,2]
[424244022,1780697432000,-461.15645671,0.00012087,2]
[424244021,1780697432000,-16168.12500207,0.00012087,2]
[424244024,1780697432000,-4999.99,0.00012088,2]
[424244025,1780697432000,-1020.47,0.00012088,2]
[424244026,1780697432000,-150.99,0.00012088,2]
[424244029,1780697432000,-862.14,0.00012088,2]
[424244028,1780697432000,-9999.99,0.00012088,2]
[424243984,1780697432000,-500.0,0.00010794,2]
[424244023,1780697432000,-214.28,0.00012088,2]
[424244009,1780697432000,-197.49,0.00011679,2]
[424244015,1780697432000,-368.03204244,0.00012014,2]
[424244027,1780697432000,-208.6,0.00012088,2]
[424243986,1780697432000,-500.0,0.00010794,2]
[424243991,1780697432000,-500.0,0.00010794,2]
[424243993,1780697432000,-650.0,0.00010794,2]
[424244013,1780697432000,-500.0,0.00012014,2]
[424243999,1780697432000,-197.49,0.00011123,2]
[424243996,1780697432000,-395.0,0.00010901,2]
[424243994,1780697432000,-500.0,0.00010794,2]
[424243997,1780697432000,-395.0,0.00010926,2]
[424243998,1780697432000,-513.8,0.00011022,2]
[424243992,1780697432000,-500.0,0.00010794,2]
[424244001,1780697432000,-150.0,0.00011201,2]
[424243995,1780697432000,-395.0,0.00010884,2]
[424244003,1780697432000,-154.93,0.00011357,2]
[424244005,1780697432000,-342.07127699,0.00011359,2]
[424244002,1780697432000,-3807.64,0.00011346,2]
[424244004,1780697432000,-394.7452817,0.00011359,2]
[424244006,1780697432000,-4576.05,0.00011384,2]
[424244012,1780697432000,-197.49,0.00011957,2]
[424244000,1780697432000,-1000.0,0.0001114,2]
[424244038,1780697433000,-153.21596415,0.000125,2]
[424244039,1780697433000,-182.31580193,0.000125,2]
[424244041,1780697433000,-210.59,0.00012575,2]
[424244040,1780697433000,-2753.28,0.00012573,2]
[424244037,1780697433000,-979.40746836,0.00012498,2]
[424244030,1780697433000,-3121.39,0.00012092,2]
[424244035,1780697433000,-8237.95878402,0.00012498,2]
[424244034,1780697433000,-151.0,0.00012397,2]
[424244032,1780697433000,-197.49,0.00012235,2]
[424244031,1780697433000,-166.68,0.00012199,2]
[424244033,1780697433000,-662.76,0.00012329,2]
[424244043,1780697433000,-209.82971037,0.00012583,2]
[424244036,1780697433000,-17702.49137385,0.00012498,2]
[424244042,1780697433000,-346.03,0.00012575,2]
[424244056,1780697433000,-20495.21268116,0.00012593,2]
[424244044,1780697433000,-151.0,0.0001259,2]
[424244057,1780697433000,-950.99559999,0.00012593,2]
[424244059,1780697433000,-2574.93626761,0.00012593,2]
[424244054,1780697433000,-1000.0,0.00012592,2]
[424244052,1780697433000,-1024.96605997,0.00012592,3]
[424244055,1780697433000,-1000.0,0.00012592,2]
[424244049,1780697433000,-300.0,0.00012592,2]
[424244058,1780697433000,-534.91324671,0.00012593,2]
[424244050,1780697433000,-1024.96605995,0.00012592,3]
[424244051,1780697433000,-1024.96605997,0.00012592,3]
[424244047,1780697433000,-300.0,0.00012592,2]
[424244048,1780697433000,-666.0,0.00012592,2]
[424244046,1780697433000,-300.0,0.00012592,2]
[424244053,1780697433000,-250.0,0.00012592,2]
[424244045,1780697433000,-151.0,0.0001259,2]
[424244079,1780697440000,-1840.95908285,0.00012593,2]
[424244076,1780697440000,-1022.3344316,0.00012309,2]
[424244078,1780697440000,-7287.28324054,0.00012593,2]
[424244077,1780697440000,-184.07019809,0.00012593,2]
[424244080,1780697441000,-1102.05122332,0.00012593,2]
[424244081,1780697441000,-1686.87805205,0.00012593,2]
[424244098,1780697443000,-10508.58270002,0.00012593,2]
[424244105,1780697446000,-1154.64954684,0.00012593,2]
[424244108,1780697446000,-376.5168,0.00012593,2]
[424244109,1780697446000,-2152.28814702,0.00012593,2]
[424244107,1780697446000,-457.1247,0.00012593,2]
[424244144,1780697464000,152.0,0.00029347,120]
[424244145,1780697571000,220.0,0.00023,30]
[424244147,1780697822000,441.84,0.00030082,120]
[424244149,1780697959000,1714.38811478,8e-05,2]
[424244148,1780697959000,457.58353198,8e-05,2]
[424244152,1780697980000,500.0,0.00030136,120]
[424244173,1780698540000,2000.0,0.00030135,120]
[424244191,1780698631000,-405.0,0.00010412,2]
[424244189,1780698631000,-405.0,0.00010392,2]
[424244188,1780698631000,-160.0,0.00010388,2]
[424244187,1780698631000,-405.0,0.00010368,2]
[424244190,1780698631000,-405.0,0.00010404,2]
[424244185,1780698631000,-276.97036876,0.00010307,2]
[424244186,1780698631000,-183.0,0.00010342,2]
[424244182,1780698631000,-365.92186488,0.00010307,2]
[424244184,1780698631000,-223.02963124,0.00010307,2]
[424244181,1780698631000,-327.63813512,0.00010206,2]
[424244180,1780698631000,-392.0,0.00010104,2]
[424244193,1780698631000,-405.0,0.00010454,2]
[424244183,1780698631000,-39.07813512,0.00010307,2]
[424244194,1780698631000,-9999.99,0.00010475,2]
[424244207,1780698631000,-500.0,0.00010699,2]
[424244195,1780698631000,-499.99,0.00010475,2]
[424244197,1780698631000,-500.0,0.00010502,2]
[424244199,1780698631000,-360.18200912,0.00010502,2]
[424244196,1780698631000,-500.0,0.00010502,2]
[424244201,1780698631000,-405.0,0.00010566,2]
[424244200,1780698631000,-1694.88,0.00010503,2]
[424244202,1780698631000,-405.0,0.00010584,2]
[424244198,1780698631000,-500.0,0.00010502,2]
[424244203,1780698631000,-405.0,0.00010589,2]
[424244205,1780698631000,-509.18986848,0.00010699,2]
[424244209,1780698631000,-36243.90436051,0.000107,2]
[424244208,1780698631000,-185.952841,0.00010699,2]
[424244206,1780698631000,-236.3531559,0.00010699,2]
[424244204,1780698631000,-500.0,0.00010699,2]
[424244192,1780698631000,-405.0,0.00010425,2]
[424244210,1780698632000,-1211.50634483,0.000107,2]
[424244229,1780698637000,-536.79524042,0.000107,2]
[424244261,1780698640000,-590.0,0.0001194,2]
[424244254,1780698640000,-590.0,0.0001194,2]
[424244256,1780698640000,-590.0,0.0001194,2]
[424244242,1780698640000,-800.0,0.000116,4]
[424244258,1780698640000,-590.0,0.0001194,2]
[424244262,1780698640000,-590.0,0.0001194,2]
[424244253,1780698640000,-590.0,0.0001194,2]
[424244250,1780698640000,-150.0,0.0001194,2]
[424244251,1780698640000,-590.0,0.0001194,2]
[424244252,1780698640000,-590.0,0.0001194,2]
[424244244,1780698640000,-2600.0,0.000118,4]
[424244243,1780698640000,-1700.0,0.000117,4]
[424244245,1780698640000,-2000.0,0.00011867,2]
[424244248,1780698640000,-1649.62,0.00011912,2]
[424244247,1780698640000,-3500.0,0.000119,4]
[424244239,1780698640000,-161.08017367,0.00011028,2]
[424244240,1780698640000,-172.47512054,0.00011393,2]
[424244246,1780698640000,-184.18,0.00011881,2]
[424244238,1780698640000,-397.71488206,0.00011028,2]
[424244249,1780698640000,-272.42392982,0.0001194,2]
[424244257,1780698640000,-590.0,0.0001194,2]
[424244236,1780698640000,-150.0,0.00010959,2]
[424244233,1780698640000,-27280.59621881,0.000107,2]
[424244234,1780698640000,-1000.0,0.00010824,2]
[424244235,1780698640000,-390.0,0.00010954,2]
[424244241,1780698640000,-857.02844522,0.00011393,2]
[424244260,1780698640000,-590.0,0.0001194,2]
[424244237,1780698640000,-451.07773984,0.00010991,2]
[424244259,1780698640000,-590.0,0.0001194,2]
[424244255,1780698640000,-590.0,0.0001194,2]
[424244288,1780698640000,-476.1436169,0.00012178,2]
[424244289,1780698640000,-2144.0,0.00012178,2]
[424244286,1780698640000,-157.975636,0.00012178,2]
[424244285,1780698640000,-151.0,0.00012178,2]
[424244281,1780698640000,-327.859357,0.00012178,2]
[424244282,1780698640000,-327.859357,0.00012178,2]
[424244279,1780698640000,-151.0,0.00012178,2]
[424244283,1780698640000,-327.859357,0.00012178,2]
[424244284,1780698640000,-327.859357,0.00012178,2]
[424244280,1780698640000,-151.0,0.00012178,2]
[424244277,1780698640000,-27892.8332,0.00012078,2]
[424244278,1780698640000,-151.0,0.00012178,2]
[424244287,1780698640000,-3967.18735136,0.00012178,2]
[424244271,1780698640000,-590.0,0.0001194,2]
[424244263,1780698640000,-590.0,0.0001194,2]
[424244275,1780698640000,-166.66,0.00011995,2]
[424244274,1780698640000,-604.6433341,0.0001194,2]
[424244264,1780698640000,-590.0,0.0001194,2]
[424244265,1780698640000,-590.0,0.0001194,2]
[424244276,1780698640000,-4761.58157503,0.00012078,2]
[424244269,1780698640000,-590.0,0.0001194,2]
[424244272,1780698640000,-590.0,0.0001194,2]
[424244266,1780698640000,-590.0,0.0001194,2]
[424244267,1780698640000,-590.0,0.0001194,2]
[424244270,1780698640000,-590.0,0.0001194,2]
[424244268,1780698640000,-590.0,0.0001194,2]
[424244273,1780698640000,-590.0,0.0001194,2]
[424244305,1780698643000,-145.78726948,0.00010699,2]
[424244307,1780698645000,-354.21273052,0.00010699,2]
[424244308,1780698645000,-185.952841,0.00010699,2]
[424244310,1780698645000,-535.16281429,0.00012178,2]
[424244311,1780698645000,-588.14539998,0.00012178,2]
[424244312,1780698645000,-287.0299997,0.00012178,2]
[424244309,1780698645000,-1032.73094142,0.00012178,2]
[424244325,1780698847000,1000.0,0.0003,120]
[424244326,1780698886000,1000.0,0.0003,120]
[424244328,1780699096000,10000.0,0.0003,120]
[424244333,1780699378000,573.9473,0.0003013,120]
[424244334,1780699636000,711.98,0.00030082,120]
[424244338,1780699741000,2000.0,0.00030134,120]
[424244342,1780699799000,-321.08537242,8.373e-05,2]
[424244341,1780699799000,-161.23,8.286e-05,2]
[424244343,1780699799000,-205.0,8.456e-05,2]
[424244345,1780699799000,-205.0,8.539e-05,2]
[424244344,1780699799000,-250.0,8.46e-05,2]
[424244347,1780699799000,-331.33425618,8.701e-05,2]
[424244346,1780699799000,-205.0,8.623e-05,2]
[424244350,1780699799000,-205.0,8.791e-05,2]
[424244351,1780699799000,-205.0,8.874e-05,2]
[424244349,1780699799000,-183.34414702,8.707e-05,2]
[424244352,1780699799000,-205.0,8.958e-05,2]
[424244353,1780699799000,-205.0,9.042e-05,2]
[424244354,1780699799000,-376.07877791,9.114e-05,2]
[424244355,1780699799000,-519.42721684,9.114e-05,2]
[424244348,1780699799000,-205.0,8.707e-05,2]
[424244356,1780699800000,-124.77880941,9.114e-05,2]
[424244357,1780699800000,-250.0,9.114e-05,2]
[424244359,1780699800000,-500.0,9.124e-05,2]
[424244360,1780699800000,-179.12371997,9.124e-05,2]
[424244358,1780699800000,-293.14,9.117e-05,2]
[424244362,1780699800000,-223.48868751,9.124e-05,2]
[424244361,1780699800000,-276.51131249,9.124e-05,2]
[424244364,1780699800000,-500.0,9.124e-05,2]
[424244365,1780699800000,-500.0,9.124e-05,2]
[424244366,1780699800000,-500.0,9.124e-05,2]
[424244367,1780699800000,-500.0,9.124e-05,2]
[424244368,1780699800000,-500.0,9.124e-05,2]
[424244369,1780699800000,-205.0,9.125e-05,2]
[424244370,1780699800000,-354.01108286,9.19e-05,2]
[424244363,1780699800000,-500.0,9.124e-05,2]
[424244400,1780699832000,-250.0,0.00010035,2]
[424244397,1780699832000,-444.7885,0.00010004,2]
[424244406,1780699832000,-500.0,0.00010474,2]
[424244408,1780699832000,-338.29671469,0.00010474,2]
[424244403,1780699832000,-847.44,0.00010435,2]
[424244407,1780699832000,-229.85991914,0.00010474,2]
[424244396,1780699832000,-183.34414701,9.983e-05,2]
[424244395,1780699832000,-166.7,9.869e-05,2]
[424244405,1780699832000,-226.42050757,0.00010474,2]
[424244393,1780699832000,-1297.42657126,9.675e-05,2]
[424244383,1780699832000,-407.20721373,9.077e-05,2]
[424244394,1780699832000,-1468.43741714,9.675e-05,2]
[424244384,1780699832000,-1740.74019427,9.077e-05,2]
[424244387,1780699832000,-845.98891714,9.19e-05,2]
[424244389,1780699832000,-1482.7640591,9.191e-05,2]
[424244390,1780699832000,-208.0,9.209e-05,2]
[424244391,1780699832000,-157.51,9.224e-05,2]
[424244392,1780699832000,-2000.0,9.582e-05,2]
[424244386,1780699832000,-636.50602998,9.157e-05,2]
[424244385,1780699832000,-300.0,9.123e-05,2]
[424244388,1780699832000,-39379.0859409,9.191e-05,2]
[424244398,1780699832000,-420.0,0.00010035,2]
[424244419,1780699832000,-160.0,0.00010514,2]
[424244401,1780699832000,-1011.0,0.00010109,2]
[424244399,1780699832000,-500.0,0.00010035,2]
[424244450,1780699832000,-333.315,0.00011359,2]
[424244448,1780699832000,-507.8692,0.00011359,2]
[424244445,1780699832000,-371.60348761,0.00011359,2]
[424244440,1780699832000,-166.47233351,0.00011302,2]
[424244442,1780699832000,-70900.53250584,0.00011359,2]
[424244438,1780699832000,-2734.06353423,0.00011259,2]
[424244433,1780699832000,-5522.38165235,0.00011259,2]
[424244431,1780699832000,-250.0,0.00011205,2]
[424244429,1780699832000,-183.34414701,0.00011159,2]
[424244436,1780699832000,-25381.1634055,0.00011259,2]
[424244423,1780699832000,-26.79374187,0.0001078,2]
[424244427,1780699832000,-180.0,0.00011039,2]
[424244404,1780699832000,-151.0,0.00010472,2]
[424244409,1780699832000,-209.29803467,0.00010474,2]
[424244411,1780699832000,-739.31,0.00010475,2]
[424244402,1780699832000,-150.0,0.00010433,2]
[424244420,1780699832000,-1973.20625813,0.0001078,2]
[424244412,1780699832000,-150.99,0.00010475,2]
[424244414,1780699832000,-969.59,0.00010475,2]
[424244425,1780699832000,-150.0,0.00010959,2]
[424244416,1780699832000,-7840.89,0.00010475,2]
[424244480,1780699838000,-719.5,0.00011359,2]
[424244478,1780699838000,-648.26118234,0.00011359,2]
[424244479,1780699838000,-1411.85707281,0.00011359,2]
[424244542,1780699843000,-255.0,0.00011455,2]
[424244548,1780699843000,-262.287485,0.00011664,2]
[424244551,1780699843000,-262.287493,0.00011664,2]
[424244549,1780699843000,-262.287485,0.00011664,2]
[424244550,1780699843000,-262.287485,0.00011664,2]
[424244547,1780699843000,-250.0,0.00011664,2]
[424244541,1780699843000,-151.0,0.00011359,2]
[424244540,1780699843000,-151.0,0.00011359,2]
[424244539,1780699843000,-151.0,0.00011359,2]
[424244536,1780699843000,-262.287485,0.00011359,2]
[424244543,1780699843000,-400.0,0.000116,4]
[424244553,1780699843000,-500.0,0.00011666,2]
[424244552,1780699843000,-500.0,0.00011666,2]
[424244560,1780699843000,-500.0,0.00011666,2]
[424244546,1780699843000,-1000.0,0.00011664,2]
[424244555,1780699843000,-500.0,0.00011666,2]
[424244564,1780699843000,-500.0,0.00011666,2]
[424244566,1780699843000,-500.0,0.00011666,2]
[424244565,1780699843000,-500.0,0.00011666,2]
[424244556,1780699843000,-500.0,0.00011666,2]
[424244557,1780699843000,-500.0,0.00011666,2]
[424244554,1780699843000,-504.3008967,0.00011666,2]
[424244558,1780699843000,-500.0,0.00011666,2]
[424244563,1780699843000,-500.0,0.00011666,2]
[424244561,1780699843000,-500.95379571,0.00011666,2]
[424244538,1780699843000,-151.0,0.00011359,2]
[424244559,1780699843000,-500.0,0.00011666,2]
[424244544,1780699843000,-5522.38165234,0.00011664,2]
[424244533,1780699843000,-262.287485,0.00011359,2]
[424244524,1780699843000,-262.287485,0.00011359,2]
[424244535,1780699843000,-262.287485,0.00011359,2]
[424244506,1780699843000,-339956.9333947,0.00011359,2]
[424244507,1780699843000,-46597.3384972,0.00011359,2]
[424244508,1780699843000,-4168.903145,0.00011359,2]
[424244512,1780699843000,-2892.2111534,0.00011359,2]
[424244510,1780699843000,-151.0,0.00011359,2]
[424244509,1780699843000,-50412.8635543,0.00011359,2]
[424244511,1780699843000,-151.0,0.00011359,2]
[424244513,1780699843000,-151.0,0.00011359,2]
[424244515,1780699843000,-151.0,0.00011359,2]
[424244517,1780699843000,-126359.1524316,0.00011359,2]
[424244514,1780699843000,-151.0,0.00011359,2]
[424244516,1780699843000,-2151.886966,0.00011359,2]
[424244518,1780699843000,-151.0,0.00011359,2]
[424244531,1780699843000,-262.287485,0.00011359,2]
[424244521,1780699843000,-151.0,0.00011359,2]
[424244522,1780699843000,-262.287485,0.00011359,2]